lending/lending_fUSD_20251022
["ID","MTS","AMOUNT","RATE_DAILY","PERIOD"]
[392052619,1761120643551,-452.95141347,0.00033626,2]
[392052620,1761120643563,-980.84999081,0.00033626,2]
[392052621,1761120643573,-554.59423153,0.00033628,2]
[392052622,1761120643583,-23388.83885754,0.0003366,2]
[392052623,1761120643593,-905.90282694,0.00033662,2]
[392052624,1761120643602,-2523.59596913,0.00033669,2]
[392052625,1761120643611,-1961.69998162,0.00033677,2]
[392052626,1761120643620,-554.59423153,0.0003368,2]
[392052628,1761120643630,-166.66,0.0003368,30]
[392052630,1761120643639,-1000.0,0.00033721,2]
[392052631,1761120643649,-176.26,0.00033722,2]
[392052632,1761120643659,-176.26,0.00033722,2]
[392052633,1761120643668,-321.57,0.00033722,2]
[392052634,1761120643677,-191.82334993,0.00033735,7]
[392052635,1761120643688,-302.0,0.00033773,2]
[392052637,1761120643697,-5300.0070978,0.00033773,2]
[392052638,1761120643707,-26376.35535064,0.000338,2]
[392052639,1761120643716,-168.0,0.00033869,2]
[392052640,1761120643726,-150.0,0.00033879,120]
[392052641,1761120643736,-14611.89409412,0.0003388,2]
[392052642,1761120643745,-150.0,0.0003388,3]
[392052643,1761120643755,-2500.0,0.0003389,2]
[392052644,1761120643764,-459.8812,0.00033899,2]
[392052645,1761120643773,-170.43023165,0.00033899,2]
[392052646,1761120643782,-191.10662978,0.000339,120]
[392052647,1761120643791,-516.0565,0.000339,2]
[392052648,1761120643801,-1692.06533944,0.000339,6]
[392052649,1761120643810,-153.60796277,0.000339,15]
[392052650,1761120643819,-668.97627467,0.000339,2]
[392052651,1761120643829,-5000.0,0.0003394,2]
[392052652,1761120643838,-6850.89023998,0.00033956,2]
[392052653,1761120643847,-500.0,0.00033973,5]
[392052654,1761120643857,-500.0,0.00033973,5]
[392052655,1761120643866,-500.0,0.00033973,5]
[392052656,1761120643875,-500.0,0.00033973,5]
[392052657,1761120643884,-502.44208721,0.00033973,5]
[392052658,1761120643894,-500.0,0.00033973,5]
[392052659,1761120643904,-200.0,0.00033976,2]
[392052660,1761120643914,-200.0,0.00033976,2]
[392052661,1761120643923,-150.0,0.00033986,120]
[392052662,1761120643932,-1000.0,0.00033989,2]
[392052663,1761120643941,-1000.0,0.00033989,2]
[392052664,1761120643951,-1000.0,0.00033989,2]
[392052665,1761120643960,-545.65,0.00033989,120]
[392052666,1761120643969,-500.0,0.00033989,30]
[392052667,1761120643979,-500.0,0.00033989,7]
[392052668,1761120643988,-502.67144752,0.00033989,30]
[392052669,1761120643997,-664.14,0.00033989,2]
[392052670,1761120644007,-413.25049284,0.00033989,7]
[392052671,1761120644016,-95189.1882767,0.0003399,2]
[392052672,1761120644026,-150.0,0.00033999,2]
[392052673,1761120644036,-500.0,0.00033999,7]
[392052674,1761120644045,-500.0,0.00033999,120]
[392052675,1761120644054,-664.14,0.00033999,2]
[392052676,1761120644065,-1000.0,0.00033999,2]
[392052677,1761120644074,-10160.23392159,0.00034,30]
[392053462,1761121192812,250.95,0.00013699,2]
[392053463,1761121193223,250.95,0.00020187,2]
[392053466,1761121204432,152.01830795,0.00029344,120]
[392053467,1761121208024,2500.0,0.00029344,120]
[392053468,1761121208119,282.45337679,0.00028838,120]
[392053469,1761121399768,191.34,0.00015992,2]
[392053470,1761121400350,191.34,0.00016834,2]
[392053471,1761121400389,191.34,0.00017676,2]
[392053472,1761121400601,191.34,0.00018517,2]
[392053473,1761121400798,191.34,0.00019359,2]
[392053474,1761121401000,191.34,0.00020201,2]
[392053475,1761121508487,87550.06,0.00015,2]
[392053476,1761121508515,100000.0,0.00015,2]
[392053477,1761121508542,32772.0029704,0.00015,2]
[392053478,1761121510539,5076.1438958,0.000154,2]
[392053481,1761121562448,8570.93822864,8e-05,2]
[392053483,1761121676177,28674.1582386,0.00015,2]
[392053488,1761121701561,1911.68823404,0.0001,2]
[392053492,1761121713314,2706.85141265,0.0001,2]
[392053494,1761121716727,502.06826917,0.000154,2]
[392053496,1761121724121,7830.0496995,0.0001,2]
[392053497,1761121804599,240.58653749,0.00029344,120]
[392053503,1761121831919,-150.0,0.00021042,2]
[392053505,1761121831930,-191.34,0.00021042,2]
[392053507,1761121831940,-300.0,0.00021253,2]
[392053508,1761121831949,-1200.0,0.00021462,2]
[392053509,1761121831959,-476.03091061,0.00021462,2]
[392053510,1761121831968,-195.0,0.00021463,2]
[392053511,1761121831978,-3898.70737719,0.00021463,2]
[392053512,1761121831987,-191.34,0.00021884,2]
[392053513,1761121831996,-191.34,0.00022726,2]
[392053514,1761121832005,-155.32615153,0.00023047,44]
[392053515,1761121832015,-4000.0,0.00023147,2]
[392053516,1761121832025,-300.0,0.00023147,2]
[392053517,1761121832035,-166.19674465,0.00023147,2]
[392053518,1761121832044,-150.31025601,0.00023147,2]
[392053519,1761121832054,-781.0,0.00023445,2]
[392053520,1761121832064,-191.34,0.00023568,2]
[392053521,1761121832073,-151.0,0.00023729,2]
[392053522,1761121832082,-151.0,0.00023729,2]
[392053523,1761121832092,-151.0,0.00023729,2]
[392053524,1761121832102,-151.0,0.00023729,2]
[392053525,1761121832111,-151.0,0.00023729,2]
[392053526,1761121832120,-151.0,0.00023729,2]
[392053527,1761121832130,-151.0,0.00023729,2]
[392053528,1761121832139,-151.0,0.00023729,2]
[392053529,1761121832149,-151.0,0.00023729,2]
[392053530,1761121832158,-151.0,0.00023729,2]
[392053531,1761121832167,-151.0,0.00023729,2]
[392053532,1761121832176,-191.34,0.00024409,2]
[392053533,1761121832185,-955.0,0.0002525,2]
[392053535,1761121832196,-191.34,0.00025251,2]
[392053537,1761121832205,-9999.99,0.00025251,2]
[392053538,1761121832214,-3511.28395875,0.00025251,2]
[392053539,1761121832227,-15615.31604125,0.00025251,2]
[392053540,1761121832237,-1200.66,0.00025786,2]
[392053542,1761121832246,-150.99,0.00025786,2]
[392053544,1761121832257,-190.8,0.00025786,2]
[392053546,1761121832266,-19750.62,0.00025786,2]
[392053548,1761121832275,-3722.8,0.00025786,2]
[392053550,1761121832284,-250.69,0.00025786,2]
[392053552,1761121832296,-7534.32,0.00025786,2]
[392053554,1761121832305,-7337.48,0.00025786,2]
[392053555,1761121832314,-191.34,0.00026093,2]
[392053556,1761121832325,-250.95,0.00026676,2]
[392053557,1761121832339,-191.34,0.00026934,2]
[392053558,1761121832348,-191.34,0.00027776,2]
[392053559,1761121832357,-500.0,0.00028267,5]
[392053560,1761121832366,-500.0,0.00028267,5]
[392053561,1761121832377,-191.34,0.00028618,2]
[392053562,1761121832387,-191.34,0.00029459,2]
[392053563,1761121832396,-666.0,0.00029857,3]
[392053564,1761121832407,-2274.18,0.00030061,2]
[392053565,1761121832416,-191.34,0.00030301,2]
[392053566,1761121832426,-357.0,0.000306,5]
[392053567,1761121832435,-150.0,0.00030842,2]
[392053568,1761121832445,-151.91,0.00030874,120]
[392053569,1761121832454,-2751.0,0.00030875,120]
[392053570,1761121832463,-500.0,0.00030887,2]
[392053571,1761121832472,-518.39539317,0.00030887,2]
[392053572,1761121832481,-500.0,0.00030887,2]
[392053573,1761121832490,-500.0,0.00030887,2]
[392053574,1761121832500,-500.0,0.00030887,2]
[392053575,1761121832509,-500.0,0.00030887,2]
[392053576,1761121832518,-473.58651533,0.00030887,2]
[392053577,1761121832527,-500.0,0.00030887,2]
[392053578,1761121832538,-500.0,0.00030887,2]
[392053579,1761121832547,-177.05705243,0.00030887,2]
[392053580,1761121832556,-500.0,0.00030887,2]
[392053581,1761121832565,-500.0,0.00030887,2]
[392053582,1761121832574,-500.0,0.00030887,2]
[392053583,1761121832584,-500.0,0.00030887,2]
[392053584,1761121832593,-500.0,0.00030887,2]
[392053585,1761121832602,-500.0,0.00030887,2]
[392053586,1761121832611,-500.0,0.00030887,2]
[392053587,1761121832621,-500.0,0.00030887,2]
[392053588,1761121832630,-500.0,0.00030887,2]
[392053589,1761121832639,-438.44767674,0.00030887,2]
[392053590,1761121832648,-500.0,0.00030887,2]
[392053591,1761121832657,-500.0,0.00030887,2]
[392053592,1761121832667,-436.72457114,0.00030888,2]
[392053593,1761121832677,-37889.58513373,0.00030888,60]
[392053594,1761121832686,-152.0,0.00031,120]
[392053595,1761121832696,-191.34,0.00031143,2]
[392053596,1761121832705,-1000.0,0.00031213,2]
[392053597,1761121832714,-6453.0,0.00031343,2]
[392053598,1761121832723,-2278.0,0.00031714,2]
[392053599,1761121832733,-150.0,0.00031914,2]
[392053600,1761121832743,-20337.0,0.00031926,2]
[392053601,1761121832752,-191.34,0.00031984,2]
[392053602,1761121832762,-1000.0,0.00032,2]
[392053603,1761121832771,-150.0,0.00032016,2]
[392053604,1761121832780,-1200.82,0.00032378,2]
[392053605,1761121832790,-197.0,0.00032416,2]
[392053606,1761121832799,-2005.26,0.000325,32]
[392053607,1761121832809,-664.13246308,0.00032584,2]
[392053608,1761121832818,-200.12688195,0.00032585,13]
[392053609,1761121832828,-700.0,0.00032644,7]
[392053610,1761121832837,-500.0,0.00032644,7]
[392053611,1761121832847,-299.47716349,0.00032644,7]
[392053612,1761121833020,-200.52283651,0.00032644,7]
[392053613,1761121833030,-718.818,0.00032684,33]
[392053614,1761121833039,-832.45,0.00032684,7]
[392053615,1761121833049,-1027.0,0.00032685,2]
[392053616,1761121833057,-197.0,0.00032748,2]
[392053617,1761121833067,-250.0,0.00032774,2]
[392053618,1761121833076,-664.13246303,0.00032808,2]
[392053619,1761121833086,-319.36029358,0.0003288,7]
[392053620,1761121833096,-197.0,0.00032911,2]
[392053621,1761121833106,-832.45,0.00032958,7]
[392053622,1761121833115,-197.0,0.00032992,7]
[392053623,1761121833125,-15238.59768808,0.00033,2]
[392053624,1761121833134,-1932.84406943,0.00033,2]
[392053625,1761121833144,-254.11578563,0.00033,30]
[392053626,1761121833154,-664.13246303,0.00033032,2]
[392053627,1761121833164,-250.95,0.00033165,2]
[392053628,1761121833173,-500.0,0.00033166,30]
[392053629,1761121833182,-832.45,0.00033232,7]
[392053630,1761121833192,-664.13246303,0.00033256,2]
[392053631,1761121833201,-197.0,0.0003336,7]
[392053632,1761121833211,-197.0,0.0003337,2]
[392053633,1761121833220,-7112.92733217,0.00033437,2]
[392053634,1761121833230,-500.0,0.0003344,30]
[392053635,1761121833239,-1027.0,0.00033461,7]
[392053636,1761121833248,-700.0,0.00033466,7]
[392053637,1761121833257,-664.13246303,0.0003348,2]
[392053638,1761121833266,-730.97481761,0.00033487,2]
[392053639,1761121833275,-832.45,0.00033506,7]
[392053640,1761121833285,-7112.92733217,0.00033507,2]
[392053641,1761121833295,-500.0,0.00033535,2]
[392053642,1761121833304,-497.0,0.00033535,5]
[392053643,1761121833314,-500.0,0.00033535,5]
[392053644,1761121833323,-152.87346375,0.00033535,5]
[392053645,1761121833336,-150.0,0.00033535,2]
[392053646,1761121833346,-730.0,0.00033535,5]
[392053647,1761121833356,-500.0,0.00033535,5]
[392053648,1761121833366,-150.0,0.00033535,2]
[392053649,1761121833375,-150.0,0.00033535,2]
[392053650,1761121833384,-158.28035432,0.00033535,5]
[392053651,1761121833394,-158.5593708,0.00033535,5]
[392053652,1761121833403,-150.0,0.00033535,5]
[392053653,1761121833413,-150.0,0.00033535,2]
[392053654,1761121833422,-500.0,0.00033535,5]
[392053655,1761121833431,-150.0,0.00033535,5]
[392053656,1761121833440,-2500.0,0.0003356,2]
[392053657,1761121833450,-7112.92733217,0.00033587,2]
[392053658,1761121833460,-500.0,0.0003359,2]
[392053659,1761121833469,-497.0,0.0003359,5]
[392053660,1761121833478,-500.0,0.0003359,5]
[392053661,1761121833488,-267.0,0.0003359,2]
[392053662,1761121833497,-730.0,0.0003359,5]
[392053663,1761121833507,-500.0,0.0003359,5]
[392053664,1761121833515,-150.0,0.0003359,5]
[392053665,1761121833525,-500.0,0.0003359,5]
[392053666,1761121833535,-150.0,0.0003359,5]
[392053667,1761121833545,-152.0,0.00033609,3]
[392053668,1761121833555,-730.97481761,0.00033637,2]
[392053669,1761121833565,-730.97481761,0.0003364,2]
[392053670,1761121833574,-500.0,0.00033645,2]
[392053671,1761121833584,-497.0,0.00033645,5]
[392053672,1761121833594,-500.0,0.00033645,5]
[392053673,1761121833604,-730.0,0.00033645,5]
[392053674,1761121833615,-500.0,0.00033645,5]
[392053675,1761121833624,-150.0,0.00033645,5]
[392053676,1761121833634,-500.0,0.00033645,5]
[392053677,1761121833643,-200.0,0.00033645,5]
[392053678,1761121833652,-1075.3139,0.00033659,2]
[392053679,1761121833662,-619.14552032,0.00033659,7]
[392053680,1761121833672,-608.79,0.00033659,2]
[392053681,1761121833681,-14661.88407977,0.0003366,2]
[392053685,1761121837814,-151.0,0.00023729,2]
[392053686,1761121837824,-151.0,0.00023729,2]
[392053687,1761121837833,-202.78443337,0.00030886,2]
[392053696,1761121838157,-74.90372082,0.00030886,2]
[392053697,1761121838183,-222.31184581,0.00030886,2]
[392053698,1761121838193,-186.33967249,0.00030886,2]
[392053699,1761121838202,-270.93863075,0.00030886,2]
[392053700,1761121838213,-150.0,0.0003338,3]
[392053701,1761121838222,-500.0,0.00033535,2]
[392053702,1761121838231,-435.0,0.00033535,5]
[392053703,1761121838241,-500.0,0.0003359,2]
[392053704,1761121838251,-435.0,0.0003359,5]
[392053705,1761121838260,-500.0,0.00033645,2]
[392053706,1761121838269,-435.0,0.00033645,5]
[392053707,1761121838278,-500.0,0.00033659,120]
[392053708,1761121838288,-56913.11379547,0.0003366,2]
[392053709,1761121838297,-500.0,0.00033699,5]
[392053710,1761121838307,-730.0,0.00033699,5]
[392053711,1761121838318,-500.0,0.00033699,5]
[392053712,1761121838329,-200.0,0.00033699,5]
[392053713,1761121838341,-500.0,0.00033699,5]
[392053714,1761121838350,-500.0,0.00033699,2]
[392053715,1761121838360,-435.0,0.00033699,5]
[392053716,1761121838370,-1498.64289469,0.000337,2]
[392053717,1761121838381,-664.13246303,0.00033703,2]
[392053718,1761121838390,-170.43023164,0.00033709,2]
[392053719,1761121838399,-500.0,0.00033714,30]
[392053720,1761121838409,-743.15630909,0.00033741,2]
[392053721,1761121838419,-1107.0,0.00033746,7]
[392053722,1761121838429,-500.0,0.00033754,5]
[392053723,1761121838438,-730.0,0.00033754,5]
[392053724,1761121838448,-500.0,0.00033754,5]
[392053725,1761121838458,-500.0,0.00033754,5]
[392053726,1761121838467,-550.0,0.00033754,2]
[392053727,1761121838477,-435.0,0.00033754,5]
[392053728,1761121838486,-832.45,0.0003378,7]
[392053729,1761121838496,-197.0,0.00033795,7]
[392053730,1761121838505,-500.0,0.00033809,5]
[392053731,1761121838514,-730.0,0.00033809,5]
[392053732,1761121838524,-500.0,0.00033809,5]
[392053733,1761121838534,-435.0,0.00033809,5]
[392053734,1761121838544,-1342.828333,0.00033827,2]
[392053735,1761121838555,-500.0,0.00033835,120]
[392053736,1761121838566,-1579.26098344,0.00033835,6]
[392053737,1761121838575,-1000.0,0.0003385,2]
[392053738,1761121838585,-248.42580472,0.00033864,5]
[392053739,1761121838595,-730.0,0.00033864,5]
[392053740,1761121838604,-500.0,0.00033864,5]
[392053741,1761121838614,-435.0,0.00033864,5]
[392053742,1761121838624,-302.00980445,0.00033888,65]
[392053743,1761121838634,-1000.0,0.0003389,2]
[392053744,1761121838644,-5730.3045,0.0003389,2]
[392053745,1761121838654,-5000.0,0.0003389,2]
[392053746,1761121838663,-197.0,0.00033896,2]
[392053747,1761121838672,-420.0456,0.00033899,10]
[392053748,1761121838682,-244.37372023,0.00033899,7]
[392053749,1761121838692,-3995.4912,0.000339,2]
[392053750,1761121838702,-1342.82833297,0.00033913,2]
[392053751,1761121838712,-730.0,0.00033919,5]
[392053752,1761121838722,-178.74134034,0.00033919,5]
[392053753,1761121838733,-435.0,0.00033919,5]
[392053754,1761121838743,-36226.850905,0.00033925,3]
[392053755,1761121838752,-664.13246303,0.00033927,2]
[392053756,1761121838762,-51370.1690872,0.00033935,2]
[392053757,1761121838772,-8527.422434,0.00033935,2]
[392053758,1761121838782,-7445.2961376,0.00033935,2]
[392053759,1761121838792,-1087.0,0.00033948,2]
[392053760,1761121838802,-150.0,0.00033949,2]
[392053761,1761121838812,-174.38776277,0.00033949,2]
[392053762,1761121838822,-500.0,0.00033949,2]
[392053763,1761121838832,-500.0,0.00033949,2]
[392053764,1761121838843,-152.51909554,0.00033949,2]
[392053765,1761121838853,-150.0,0.00033949,2]
[392053766,1761121838864,-500.0,0.00033949,2]
[392053767,1761121838873,-500.0,0.00033949,2]
[392053768,1761121838883,-500.0,0.00033949,2]
[392053769,1761121838894,-500.0,0.00033949,2]
[392053770,1761121838904,-500.0,0.00033949,2]
[392053771,1761121838914,-417.05638893,0.00033949,2]
[392053772,1761121838924,-150.0,0.00033949,2]
[392053773,1761121838934,-500.0,0.00033949,2]
[392053774,1761121838944,-500.0,0.00033949,120]
[392053775,1761121838953,-500.0,0.00033949,120]
[392053776,1761121838963,-502.75992422,0.00033949,120]
[392053777,1761121838973,-12075.6169683,0.00033963,3]
[392053778,1761121838982,-502.69763553,0.00033973,5]
[392053779,1761121838992,-500.0,0.00033973,5]
[392053780,1761121839002,-500.0,0.00033973,5]
[392053781,1761121839011,-500.0,0.00033973,5]
[392053782,1761121839021,-730.0,0.00033973,5]
[392053783,1761121839030,-435.0,0.00033973,5]
[392053784,1761121839040,-1107.0,0.00033976,2]
[392053785,1761121839049,-24151.2339367,0.0003398,3]
[392053786,1761121839059,-12075.6169683,0.00033983,3]
[392053787,1761121839068,-500.0,0.00033988,30]
[392053788,1761121839079,-84529.3187783,0.00033989,3]
[392053789,1761121839089,-152.10857944,0.00033989,3]
[392053790,1761121839098,-608.79,0.00033989,2]
[392053791,1761121839108,-500.0,0.00033989,120]
[392053792,1761121839118,-12075.6169683,0.00033989,3]
[392053793,1761121839128,-1052.0,0.0003399,5]
[392053794,1761121839138,-96604.9357466,0.0003399,3]
[392053795,1761121839147,-12075.6169683,0.0003399,3]
[392053796,1761121839157,-195.3384444,0.00033992,2]
[392053797,1761121839167,-500.0,0.00033998,120]
[392053798,1761121839176,-500.0,0.00033998,120]
[392053799,1761121839185,-500.0,0.00033998,120]
[392053800,1761121839195,-507.27406189,0.00033998,2]
[392053801,1761121839204,-500.0,0.00033998,120]
[392053802,1761121839214,-515.69519467,0.00033998,120]
[392053803,1761121839225,-500.0,0.00033998,120]
[392053804,1761121839235,-500.0,0.00033998,120]
[392053805,1761121839244,-330.46475231,0.00033998,120]
[392053806,1761121839254,-500.0,0.00033998,120]
[392053807,1761121839264,-500.0,0.00033998,120]
[392053808,1761121839274,-500.0,0.00033998,120]
[392053809,1761121839284,-500.0,0.00033998,120]
[392053810,1761121839294,-277.35679052,0.00033998,7]
[392053811,1761121839304,-287.61899177,0.00033998,7]
[392053812,1761121839313,-298.26089446,0.00033998,7]
[392053813,1761121839323,-309.29654756,0.00033998,7]
[392053814,1761121839337,-320.74051982,0.00033998,7]
[392053815,1761121839345,-332.60791905,0.00033998,7]
[392053816,1761121839355,-264.8424049,0.00033998,7]
[392053817,1761121839364,-608.79,0.00033998,2]
[392053818,1761121839374,-500.0,0.00033998,120]
[392053819,1761121839383,-1342.82833297,0.00033999,2]
[392053820,1761121839392,-151.0,0.00033999,2]
[392053821,1761121839402,-228.81572779,0.00033999,2]
[392053822,1761121839411,-1000.0,0.00033999,30]
[392053823,1761121839421,-151.0,0.00033999,30]
[392053824,1761121839430,-151.0,0.00033999,30]
[392053825,1761121839439,-151.0,0.00033999,30]
[392053826,1761121839448,-500.0,0.00033999,30]
[392053827,1761121839457,-300.0,0.00033999,30]
[392053828,1761121839466,-1000.0,0.00033999,30]
[392053829,1761121839475,-156.587,0.00033999,30]
[392053830,1761121839484,-151.0,0.00033999,30]
[392053831,1761121839493,-518.5,0.00033999,30]
[392053832,1761121839503,-311.1,0.00033999,30]
[392053833,1761121839512,-1000.0,0.00033999,30]
[392053834,1761121839522,-162.380719,0.00033999,30]
[392053835,1761121839531,-151.0,0.00033999,30]
[392053836,1761121839541,-537.6845,0.00033999,30]
[392053837,1761121839551,-322.6107,0.00033999,30]
[392053838,1761121839560,-1000.0,0.00033999,30]
[392053839,1761121839569,-151.0,0.00033999,30]
[392053840,1761121839579,-283.89526724,0.00033999,30]
[392053841,1761121839588,-557.5788265,0.00033999,30]
[392053842,1761121839598,-334.5472959,0.00033999,30]
[392053843,1761121839607,-151.0,0.00033999,30]
[392053844,1761121839616,-578.20924308,0.00033999,30]
[392053845,1761121839625,-151.0,0.00033999,30]
[392053846,1761121839635,-346.92554585,0.00033999,30]
[392053847,1761121839644,-1000.0,0.00033999,30]
[392053848,1761121839653,-220.0,0.00033999,30]
[392053849,1761121839663,-151.0,0.00033999,30]
[392053850,1761121839672,-599.60298507,0.00033999,30]
[392053851,1761121839681,-359.76179104,0.00033999,30]
[392053852,1761121839691,-1000.0,0.00033999,30]
[392053853,1761121839700,-151.0,0.00033999,30]
[392053854,1761121839710,-151.0,0.00033999,30]
[392053855,1761121839719,-621.78829552,0.00033999,30]
[392053856,1761121839730,-373.07297731,0.00033999,30]
[392053857,1761121839739,-1000.0,0.00033999,30]
[392053858,1761121839749,-151.0,0.00033999,30]
[392053859,1761121839759,-151.0,0.00033999,30]
[392053861,1761121839768,-644.79446246,0.00033999,30]
[392053862,1761121839778,-500.0,0.00033999,30]
[392053863,1761121839787,-386.87667747,0.00033999,30]
[392053864,1761121839796,-1000.0,0.00033999,30]
[392053865,1761121839806,-151.0,0.00033999,30]
[392053866,1761121839816,-151.0,0.00033999,30]
[392053867,1761121839826,-668.65185757,0.00033999,30]
[392053868,1761121839835,-401.19111454,0.00033999,30]
[392053869,1761121839844,-500.0,0.00033999,30]
[392053870,1761121839853,-500.0,0.00033999,30]
[392053871,1761121839863,-1000.0,0.00033999,30]
[392053872,1761121839872,-250.0,0.00033999,30]
[392053873,1761121839882,-286.8280364,0.00033999,30]
[392053874,1761121839891,-151.0,0.00033999,30]
[392053875,1761121839900,-693.3919763,0.00033999,30]
[392053876,1761121839909,-416.03518578,0.00033999,30]
[392053877,1761121839918,-500.0,0.00033999,30]
[392053878,1761121839927,-1000.0,0.00033999,30]
[392053879,1761121839936,-500.0,0.00033999,30]
[392053880,1761121839945,-1000.0,0.00033999,30]
[392053881,1761121839954,-250.0,0.00033999,30]
[392053882,1761121839963,-151.0,0.00033999,30]
[392053883,1761121839972,-719.04747942,0.00033999,30]
[392053884,1761121839981,-431.42848765,0.00033999,30]
[392053885,1761121839990,-160.0,0.00033999,30]
[392053886,1761121839999,-500.0,0.00033999,30]
[392053887,1761121840008,-500.0,0.00033999,30]
[392053888,1761121840018,-1000.0,0.00033999,30]
[392053889,1761121840028,-250.0,0.00033999,30]
[392053890,1761121840037,-151.0,0.00033999,30]
[392053891,1761121840046,-745.65223616,0.00033999,30]
[392053892,1761121840055,-447.3913417,0.00033999,30]
[392053893,1761121840064,-226.70578796,0.00033999,30]
[392053894,1761121840074,-1000.0,0.00033999,30]
[392053895,1761121840084,-500.0,0.00033999,30]
[392053896,1761121840093,-500.0,0.00033999,30]
[392053897,1761121840103,-1000.0,0.00033999,30]
[392053898,1761121840112,-250.0,0.00033999,30]
[392053899,1761121840122,-151.0,0.00033999,30]
[392053900,1761121840131,-773.2413689,0.00033999,30]
[392053901,1761121840140,-463.94482134,0.00033999,30]
[392053902,1761121840148,-500.0,0.00033999,30]
[392053903,1761121840157,-1000.0,0.00033999,30]
[392053904,1761121840167,-500.0,0.00033999,30]
[392053905,1761121840176,-1000.0,0.00033999,30]
[392053906,1761121840185,-250.0,0.00033999,30]
[392053907,1761121840195,-151.0,0.00033999,30]
[392053908,1761121840204,-801.85129955,0.00033999,30]
[392053909,1761121840214,-481.11077973,0.00033999,30]
[392053910,1761121840223,-500.0,0.00033999,30]
[392053911,1761121840232,-500.0,0.00033999,30]
[392053912,1761121840241,-1000.0,0.00033999,30]
[392053913,1761121840250,-250.0,0.00033999,30]
[392053914,1761121840259,-1000.0,0.00033999,30]
[392053915,1761121840268,-229.61180945,0.00033999,30]
[392053916,1761121840278,-831.51979763,0.00033999,30]
[392053917,1761121840287,-195.07901228,0.00033999,30]
[392053918,1761121840297,-500.0,0.00033999,30]
[392053919,1761121840307,-500.0,0.00033999,30]
[392053920,1761121840316,-1000.0,0.00033999,30]
[392053921,1761121840327,-1000.0,0.00033999,30]
[392053922,1761121840340,-250.0,0.00033999,30]
[392053923,1761121840349,-862.28603014,0.00033999,30]
[392053924,1761121840359,-500.0,0.00033999,30]
[392053925,1761121840368,-1000.0,0.00033999,30]
[392053926,1761121840378,-500.0,0.00033999,30]
[392053927,1761121840388,-250.0,0.00033999,30]
[392053928,1761121840398,-1000.0,0.00033999,30]
[392053929,1761121840410,-894.19061326,0.00033999,30]
[392053930,1761121840419,-500.0,0.00033999,30]
[392053931,1761121840429,-500.0,0.00033999,30]
[392053932,1761121840438,-1000.0,0.00033999,30]
[392053933,1761121840448,-500.0,0.00033999,30]
[392053934,1761121840457,-250.0,0.00033999,30]
[392053935,1761121840467,-1000.0,0.00033999,30]
[392053936,1761121840477,-927.27566595,0.00033999,30]
[392053937,1761121840487,-500.0,0.00033999,30]
[392053938,1761121840496,-500.0,0.00033999,30]
[392053939,1761121840505,-1000.0,0.00033999,30]
[392053940,1761121840515,-500.0,0.00033999,30]
[392053941,1761121840525,-250.0,0.00033999,30]
[392053942,1761121840535,-1000.0,0.00033999,30]
[392053943,1761121840544,-200.0,0.00033999,30]
[392053944,1761121840556,-500.0,0.00033999,30]
[392053945,1761121840565,-500.0,0.00033999,30]
[392053946,1761121840575,-1000.0,0.00033999,30]
[392053947,1761121840584,-500.0,0.00033999,30]